[Event "Titled Tuesday Blitz March 15 Late 2022"]
[White "Winkels, Marcel"]
[Black "Lock, Gavin R"]
[WhiteFideId "1003887"]
[BlackFideId "408646"]
[WhiteElo "1900"]
[BlackElo "2104"]
[Result "0-1"]
[Round "05"]
[TimeControl "180+1"]
[Date "2022.03.16"]
[WhiteClock "0:00:15"]
[BlackClock "0:00:12"]

1. e4 {[%clk 0:02:56]}  c5 {[%clk 0:02:56]} 2. Nf3 {[%clk 0:02:55]}  Nf6 {[%clk 0:02:57]} 3. e5 {[%clk 0:02:54]}  Nd5 {[%clk 0:02:57]} 4. Nc3 {[%clk 0:02:54]}  e6 {[%clk 0:02:57]} 5. Nxd5 {[%clk 0:02:54]}  exd5 {[%clk 0:02:58]} 6. d4 {[%clk 0:02:54]}  Nc6 {[%clk 0:02:59]} 7. dxc5 {[%clk 0:02:52]}  Bxc5 {[%clk 0:03:00]} 8. Qxd5 {[%clk 0:02:51]}  Qb6 {[%clk 0:03:00]} 9. Bc4 {[%clk 0:02:50]}  Bxf2+ {[%clk 0:03:00]} 10. Ke2 {[%clk 0:02:50]}  O-O {[%clk 0:03:01]} 11. Rf1 {[%clk 0:02:49]}  Bc5 {[%clk 0:03:01]} 12. Ng5 {[%clk 0:02:39]}  Nxe5 {[%clk 0:02:58]} 13. Nxf7 {[%clk 0:02:32]}  Nxf7 {[%clk 0:02:55]} 14. Rxf7 {[%clk 0:02:31]}  Qe6+ {[%clk 0:02:55]} 15. Qxe6 {[%clk 0:02:22]}  dxe6 {[%clk 0:02:56]} 16. Rxf8+ {[%clk 0:02:14]}  Kxf8 {[%clk 0:02:57]} 17. Bf4 {[%clk 0:02:07]}  Bd7 {[%clk 0:02:18]} 18. Be5 {[%clk 0:02:05]}  Ke7 {[%clk 0:01:47]} 19. g3 {[%clk 0:02:02]}  Rf8 {[%clk 0:01:16]} 20. Rf1 {[%clk 0:01:55]}  Rxf1 {[%clk 0:01:15]} 21. Kxf1 {[%clk 0:01:54]}  g6 {[%clk 0:01:14]} 22. Ke2 {[%clk 0:01:50]}  Bc6 {[%clk 0:01:13]} 23. c3 {[%clk 0:01:47]}  b5 {[%clk 0:01:04]} 24. Bd3 {[%clk 0:01:45]}  a6 {[%clk 0:00:46]} 25. h4 {[%clk 0:01:44]}  Bd5 {[%clk 0:00:45]} 26. b3 {[%clk 0:01:42]}  Bd6 {[%clk 0:00:38]} 27. Bxd6+ {[%clk 0:01:36]}  Kxd6 {[%clk 0:00:38]} 28. Ke3 {[%clk 0:01:31]}  Ke5 {[%clk 0:00:30]} 29. Be2 {[%clk 0:01:26]}  h6 {[%clk 0:00:24]} 30. Bd3 {[%clk 0:01:20]}  g5 {[%clk 0:00:24]} 31. hxg5 {[%clk 0:01:16]}  hxg5 {[%clk 0:00:25]} 32. c4 {[%clk 0:01:09]}  bxc4 {[%clk 0:00:26]} 33. bxc4 {[%clk 0:01:05]}  Bc6 {[%clk 0:00:22]} 34. a3 {[%clk 0:01:04]}  a5 {[%clk 0:00:22]} 35. Be2 {[%clk 0:01:03]}  Be4 {[%clk 0:00:20]} 36. Bf1 {[%clk 0:00:57]}  Bc6 {[%clk 0:00:19]} 37. Be2 {[%clk 0:00:56]}  Be4 {[%clk 0:00:19]} 38. Bf1 {[%clk 0:00:56]}  Bc6 {[%clk 0:00:19]} 39. Bd3 {[%clk 0:00:55]}  Bb7 {[%clk 0:00:18]} 40. c5 {[%clk 0:00:52]}  Bc6 {[%clk 0:00:17]} 41. Bc4 {[%clk 0:00:49]}  Kf5 {[%clk 0:00:15]} 42. g4+ {[%clk 0:00:42]}  Ke5 {[%clk 0:00:06]} 43. Be2 {[%clk 0:00:42]}  Kd5 {[%clk 0:00:05]} 44. Kd2 {[%clk 0:00:33]}  Kxc5 {[%clk 0:00:05]} 45. Kc3 {[%clk 0:00:34]}  Bd5 {[%clk 0:00:05]} 46. Bd3 {[%clk 0:00:33]}  e5 {[%clk 0:00:05]} 47. Bf5 {[%clk 0:00:32]}  Bf3 {[%clk 0:00:02]} 48. Kd2 {[%clk 0:00:31]}  Kd4 {[%clk 0:00:02]} 49. Be6 {[%clk 0:00:30]}  e4 {[%clk 0:00:02]} 50. Bd7 {[%clk 0:00:25]}  e3+ {[%clk 0:00:01]} 51. Ke1 {[%clk 0:00:25]}  Ke5 {[%clk 0:00:01]} 52. Bf5 {[%clk 0:00:17]}  Kf4 {[%clk 0:00:02]} 53. Be6 {[%clk 0:00:16]}  Bxg4 {[%clk 0:00:03]} 54. Bxg4 {[%clk 0:00:15]}  Kxg4 {[%clk 0:00:03]} 55. Ke2 {[%clk 0:00:16]}  Kf4 {[%clk 0:00:03]} 56. Kf1 {[%clk 0:00:15]}  g4 {[%clk 0:00:04]} 57. Kg2 {[%clk 0:00:14]}  Ke4 {[%clk 0:00:05]} 58. Kf1 {[%clk 0:00:14]}  Kd3 {[%clk 0:00:05]} 59. Ke1 {[%clk 0:00:14]}  g3 {[%clk 0:00:06]} 60. Kf1 {[%clk 0:00:14]}  g2+ {[%clk 0:00:07]} 61. Kxg2 {[%clk 0:00:14]}  e2 {[%clk 0:00:08]} 62. Kf2 {[%clk 0:00:13]}  Kd2 {[%clk 0:00:09]} 63. Kf3 {[%clk 0:00:14]}  e1=Q {[%clk 0:00:09]} 64. Kf4 {[%clk 0:00:14]}  Qa1 {[%clk 0:00:10]} 65. Ke4 {[%clk 0:00:13]}  Qxa3 {[%clk 0:00:11]} 66. Kd4 {[%clk 0:00:14]}  Qd3+ {[%clk 0:00:11]} 67. Kc5 {[%clk 0:00:15]}  a4 {[%clk 0:00:12]} 0-1


[Site "https://www.chess.com"]

[Event "Titled Tuesday Blitz March 15 Late 2022"]
[White "Yoo, Christopher Woojin"]
[Black "Golubka, Petro"]
[WhiteFideId "30909694"]
[BlackFideId "14114224"]
[WhiteElo "2105"]
[BlackElo "2346"]
[Result "0-1"]
[Round "05"]
[TimeControl "180+1"]
[Date "2022.03.15"]
[WhiteClock "0:00:01"]
[BlackClock "0:00:10"]

1. e4 {[%clk 0:02:54]}  e5 {[%clk 0:02:33]} 2. Nf3 {[%clk 0:02:52]}  Nc6 {[%clk 0:02:22]} 3. Bc4 {[%clk 0:02:50]}  Nf6 {[%clk 0:02:20]} 4. Ng5 {[%clk 0:02:48]}  d5 {[%clk 0:02:18]} 5. exd5 {[%clk 0:02:48]}  Na5 {[%clk 0:02:12]} 6. Bb5+ {[%clk 0:02:47]}  c6 {[%clk 0:02:09]} 7. dxc6 {[%clk 0:02:46]}  bxc6 {[%clk 0:02:10]} 8. Bd3 {[%clk 0:02:46]}  h6 {[%clk 0:02:02]} 9. Ne4 {[%clk 0:02:39]}  Nd5 {[%clk 0:02:02]} 10. Ng3 {[%clk 0:01:48]}  g6 {[%clk 0:01:49]} 11. O-O {[%clk 0:01:39]}  Bg7 {[%clk 0:01:31]} 12. Re1 {[%clk 0:01:19]}  O-O {[%clk 0:01:29]} 13. Bf1 {[%clk 0:01:19]}  c5 {[%clk 0:01:03]} 14. Nc3 {[%clk 0:01:13]}  Nf4 {[%clk 0:01:03]} 15. d3 {[%clk 0:01:09]}  Ne6 {[%clk 0:01:02]} 16. Be2 {[%clk 0:00:46]}  Nd4 {[%clk 0:00:58]} 17. Nge4 {[%clk 0:00:38]}  Nb7 {[%clk 0:00:52]} 18. Bf3 {[%clk 0:00:33]}  Rb8 {[%clk 0:00:39]} 19. Be3 {[%clk 0:00:28]}  Be6 {[%clk 0:00:37]} 20. Nd2 {[%clk 0:00:25]}  Nd6 {[%clk 0:00:34]} 21. b3 {[%clk 0:00:23]}  N6f5 {[%clk 0:00:33]} 22. Nce4 {[%clk 0:00:22]}  Rc8 {[%clk 0:00:31]} 23. Ng3 {[%clk 0:00:10]}  Nh4 {[%clk 0:00:26]} 24. Bxd4 {[%clk 0:00:06]}  cxd4 {[%clk 0:00:27]} 25. Be2 {[%clk 0:00:05]}  f5 {[%clk 0:00:26]} 26. Nf3 {[%clk 0:00:05]}  Nxf3+ {[%clk 0:00:21]} 27. Bxf3 {[%clk 0:00:05]}  Bf7 {[%clk 0:00:21]} 28. Qd2 {[%clk 0:00:04]}  Qb6 {[%clk 0:00:19]} 29. Rac1 {[%clk 0:00:04]}  Kh7 {[%clk 0:00:16]} 30. h4 {[%clk 0:00:04]}  h5 {[%clk 0:00:16]} 31. Bxh5 {[%clk 0:00:03]}  Bh6 {[%clk 0:00:15]} 32. Qe2 {[%clk 0:00:02]}  Bxc1 {[%clk 0:00:14]} 33. Rxc1 {[%clk 0:00:02]}  gxh5 {[%clk 0:00:15]} 34. Qxe5 {[%clk 0:00:02]}  Bg6 {[%clk 0:00:12]} 35. Qf4 {[%clk 0:00:02]}  Qc7 {[%clk 0:00:12]} 36. Qg5 {[%clk 0:00:02]}  Qd8 {[%clk 0:00:12]} 37. Qf4 {[%clk 0:00:02]}  Qe7 {[%clk 0:00:12]} 38. Kf1 {[%clk 0:00:01]}  Rcd8 {[%clk 0:00:11]} 39. Kg1 {[%clk 0:00:01]}  Rfe8 {[%clk 0:00:10]} 40. Qf3 {[%clk 0:00:01]}  Qe5 {[%clk 0:00:10]} 0-1


[Site "https://www.chess.com"]

[Event "Titled Tuesday Blitz March 15 Late 2022"]
[White "Zhigalko, Sergei"]
[Black "Postnikov, Daniil"]
[WhiteFideId "13502956"]
[BlackFideId "4166329"]
[WhiteElo "2662"]
[BlackElo "2261"]
[Result "1-0"]
[Round "05"]
[TimeControl "180+1"]
[Date "2022.03.15"]
[WhiteClock "0:00:16"]
[BlackClock "0:00:03"]

1. Nf3 {[%clk 0:02:28]}  d5 {[%clk 0:02:58]} 2. d4 {[%clk 0:02:26]}  Bf5 {[%clk 0:02:57]} 3. Bf4 {[%clk 0:02:26]}  e6 {[%clk 0:02:56]} 4. e3 {[%clk 0:02:26]}  c6 {[%clk 0:02:56]} 5. Bd3 {[%clk 0:02:26]}  Nf6 {[%clk 0:02:50]} 6. O-O {[%clk 0:02:26]}  Bd6 {[%clk 0:02:49]} 7. Bg3 {[%clk 0:02:25]}  Bxg3 {[%clk 0:02:48]} 8. hxg3 {[%clk 0:02:25]}  Nbd7 {[%clk 0:02:45]} 9. c4 {[%clk 0:02:21]}  Bxd3 {[%clk 0:02:35]} 10. Qxd3 {[%clk 0:02:21]}  Ne4 {[%clk 0:02:35]} 11. Nc3 {[%clk 0:02:18]}  Nxc3 {[%clk 0:02:15]} 12. Qxc3 {[%clk 0:02:09]}  O-O {[%clk 0:02:13]} 13. Rfd1 {[%clk 0:02:07]}  Nf6 {[%clk 0:02:12]} 14. b4 {[%clk 0:02:06]}  Qe7 {[%clk 0:02:04]} 15. Rab1 {[%clk 0:02:02]}  Rfc8 {[%clk 0:01:55]} 16. a4 {[%clk 0:02:01]}  a6 {[%clk 0:01:52]} 17. c5 {[%clk 0:01:56]}  Ne4 {[%clk 0:01:51]} 18. Qc2 {[%clk 0:01:50]}  Qe8 {[%clk 0:01:33]} 19. Rb2 {[%clk 0:01:48]}  Qd8 {[%clk 0:01:04]} 20. Ne5 {[%clk 0:01:44]}  b5 {[%clk 0:00:24]} 21. cxb6 {[%clk 0:01:38]}  Qxb6 {[%clk 0:00:23]} 22. Rc1 {[%clk 0:01:38]}  f6 {[%clk 0:00:17]} 23. Nd3 {[%clk 0:00:51]}  Nd6 {[%clk 0:00:13]} 24. Nc5 {[%clk 0:00:51]}  Nc4 {[%clk 0:00:09]} 25. Rb3 {[%clk 0:00:51]}  e5 {[%clk 0:00:06]} 26. dxe5 {[%clk 0:00:19]}  fxe5 {[%clk 0:00:03]} 27. Qf5 {[%clk 0:00:20]}  Rf8 {[%clk 0:00:03]} 28. Qe6+ {[%clk 0:00:20]}  Kh8 {[%clk 0:00:03]} 29. Nd7 {[%clk 0:00:18]}  Qc7 {[%clk 0:00:02]} 30. Nxf8 {[%clk 0:00:18]}  Rxf8 {[%clk 0:00:03]} 31. b5 {[%clk 0:00:16]}  axb5 {[%clk 0:00:03]} 32. axb5 {[%clk 0:00:16]} 1-0


[Site "https://www.chess.com"]

[Event "Titled Tuesday Blitz March 15 Late 2022"]
[White "Zhurbinsky, David"]
[Black "Seul, Georg"]
[WhiteFideId "2072904"]
[BlackFideId "4601653"]
[WhiteElo "2603"]
[BlackElo "2271"]
[Result "0-1"]
[Round "05"]
[TimeControl "180+1"]
[Date "2022.03.16"]
[WhiteClock "0:00:34"]
[BlackClock "0:00:28"]

1. e4 {[%clk 0:02:55]}  c6 {[%clk 0:02:59]} 2. d4 {[%clk 0:02:56]}  d5 {[%clk 0:02:59]} 3. Nc3 {[%clk 0:02:56]}  dxe4 {[%clk 0:02:59]} 4. Nxe4 {[%clk 0:02:57]}  Nf6 {[%clk 0:02:59]} 5. Nxf6+ {[%clk 0:02:57]}  exf6 {[%clk 0:02:59]} 6. Nf3 {[%clk 0:02:58]}  Bd6 {[%clk 0:02:58]} 7. Bd3 {[%clk 0:02:58]}  O-O {[%clk 0:02:57]} 8. O-O {[%clk 0:02:59]}  Bg4 {[%clk 0:02:48]} 9. h3 {[%clk 0:02:59]}  Bh5 {[%clk 0:02:48]} 10. Re1 {[%clk 0:02:58]}  Nd7 {[%clk 0:02:47]} 11. c4 {[%clk 0:02:57]}  Qc7 {[%clk 0:02:41]} 12. Be3 {[%clk 0:02:53]}  Rad8 {[%clk 0:02:38]} 13. Rc1 {[%clk 0:02:52]}  Bb4 {[%clk 0:02:30]} 14. Rf1 {[%clk 0:02:44]}  Bd6 {[%clk 0:02:27]} 15. Re1 {[%clk 0:02:41]}  Rfe8 {[%clk 0:02:27]} 16. a3 {[%clk 0:02:38]}  Nf8 {[%clk 0:02:22]} 17. Be2 {[%clk 0:02:33]}  Bf4 {[%clk 0:02:15]} 18. Qd2 {[%clk 0:02:22]}  Ne6 {[%clk 0:02:08]} 19. Rcd1 {[%clk 0:02:14]}  Bxf3 {[%clk 0:01:58]} 20. Bxf3 {[%clk 0:02:08]}  Rxd4 {[%clk 0:01:48]} 21. Bxf4 {[%clk 0:01:46]}  Rxf4 {[%clk 0:01:17]} 22. b3 {[%clk 0:01:41]}  g6 {[%clk 0:01:12]} 23. Qd7 {[%clk 0:01:39]}  Qb8 {[%clk 0:01:10]} 24. Rd6 {[%clk 0:01:30]}  Rd8 {[%clk 0:01:04]} 25. Qxd8+ {[%clk 0:01:22]}  Nxd8 {[%clk 0:01:03]} 26. Re8+ {[%clk 0:01:23]}  Kg7 {[%clk 0:01:03]} 27. Rexd8 {[%clk 0:01:17]}  Qc7 {[%clk 0:01:01]} 28. R8d7 {[%clk 0:01:02]}  Qb6 {[%clk 0:00:51]} 29. b4 {[%clk 0:00:52]}  Rxc4 {[%clk 0:00:48]} 30. Bd5 {[%clk 0:00:47]}  Rc1+ {[%clk 0:00:40]} 31. Kh2 {[%clk 0:00:47]}  Qxf2 {[%clk 0:00:40]} 32. Rxf7+ {[%clk 0:00:47]}  Kh6 {[%clk 0:00:39]} 33. Bf3 {[%clk 0:00:42]}  Qg1+ {[%clk 0:00:29]} 34. Kg3 {[%clk 0:00:42]}  Qe1+ {[%clk 0:00:30]} 35. Kf4 {[%clk 0:00:33]}  Qe5+ {[%clk 0:00:29]} 36. Kg4 {[%clk 0:00:34]}  Qg5# {[%clk 0:00:28]} 0-1


[Site "https://www.chess.com"]

[Event "Titled Tuesday Blitz March 15 Late 2022"]
[White "Abdyzhapar, Asylbek"]
[Black "Khripachenko, Alexander"]
[WhiteFideId "13800337"]
[BlackFideId "54184975"]
[WhiteElo "2331"]
[BlackElo "2177"]
[Result "1-0"]
[Round "06"]
[TimeControl "180+1"]
[Date "2022.03.15"]
[WhiteClock "0:00:19"]
[BlackClock "0:00:28"]

1. e4 {[%clk 0:03:00]}  c5 {[%clk 0:02:58]} 2. Nf3 {[%clk 0:03:01]}  Nf6 {[%clk 0:02:58]} 3. Nc3 {[%clk 0:03:00]}  Nc6 {[%clk 0:02:58]} 4. d4 {[%clk 0:03:00]}  d5 {[%clk 0:02:58]} 5. exd5 {[%clk 0:02:51]}  Nxd5 {[%clk 0:02:59]} 6. Bb5 {[%clk 0:02:50]}  Nxc3 {[%clk 0:02:58]} 7. bxc3 {[%clk 0:02:50]}  Qb6 {[%clk 0:02:58]} 8. a4 {[%clk 0:02:44]}  a6 {[%clk 0:02:55]} 9. Bd3 {[%clk 0:02:43]}  Bg4 {[%clk 0:02:52]} 10. h3 {[%clk 0:02:39]}  Bh5 {[%clk 0:02:52]} 11. Be3 {[%clk 0:02:31]}  e6 {[%clk 0:02:51]} 12. O-O {[%clk 0:02:29]}  Be7 {[%clk 0:02:47]} 13. Rb1 {[%clk 0:02:29]}  Qc7 {[%clk 0:02:47]} 14. Be4 {[%clk 0:02:22]}  O-O-O {[%clk 0:02:42]} 15. d5 {[%clk 0:02:08]}  exd5 {[%clk 0:02:39]} 16. Bxd5 {[%clk 0:02:08]}  Rd7 {[%clk 0:02:29]} 17. c4 {[%clk 0:02:03]}  Nb4 {[%clk 0:02:28]} 18. c3 {[%clk 0:01:46]}  Nxd5 {[%clk 0:02:28]} 19. cxd5 {[%clk 0:01:47]}  c4 {[%clk 0:02:19]} 20. Qd4 {[%clk 0:01:32]}  Bxf3 {[%clk 0:02:18]} 21. gxf3 {[%clk 0:01:32]}  Bf6 {[%clk 0:02:13]} 22. Qa7 {[%clk 0:01:28]}  Qb8 {[%clk 0:02:13]} 23. Qc5+ {[%clk 0:01:27]}  Qc7 {[%clk 0:02:12]} 24. d6 {[%clk 0:01:15]}  Qxc5 {[%clk 0:02:11]} 25. Bxc5 {[%clk 0:01:16]}  Re8 {[%clk 0:02:10]} 26. Rb4 {[%clk 0:01:14]}  Kb8 {[%clk 0:02:01]} 27. Rxc4 {[%clk 0:01:12]}  Be5 {[%clk 0:01:52]} 28. Rd1 {[%clk 0:01:12]}  Red8 {[%clk 0:01:51]} 29. Bb6 {[%clk 0:01:11]}  Rc8 {[%clk 0:01:51]} 30. Bc7+ {[%clk 0:01:09]}  Ka8 {[%clk 0:01:47]} 31. Re4 {[%clk 0:01:03]}  Bxc3 {[%clk 0:01:10]} 32. Re7 {[%clk 0:01:02]}  Rdd8 {[%clk 0:00:46]} 33. Bxd8 {[%clk 0:01:00]}  Rxd8 {[%clk 0:00:47]} 34. Rxf7 {[%clk 0:00:58]}  b5 {[%clk 0:00:48]} 35. axb5 {[%clk 0:00:58]}  axb5 {[%clk 0:00:49]} 36. Re7 {[%clk 0:00:43]}  b4 {[%clk 0:00:48]} 37. d7 {[%clk 0:00:43]}  Kb7 {[%clk 0:00:46]} 38. Re4 {[%clk 0:00:37]}  Kc7 {[%clk 0:00:38]} 39. Rc4+ {[%clk 0:00:36]}  Kb7 {[%clk 0:00:38]} 40. Kf1 {[%clk 0:00:36]}  h6 {[%clk 0:00:38]} 41. f4 {[%clk 0:00:35]}  Kb6 {[%clk 0:00:34]} 42. f5 {[%clk 0:00:32]}  Kb5 {[%clk 0:00:33]} 43. Rc8 {[%clk 0:00:32]}  Bf6 {[%clk 0:00:34]} 44. Rxd8 {[%clk 0:00:21]}  Bxd8 {[%clk 0:00:34]} 45. Ke2 {[%clk 0:00:22]}  b3 {[%clk 0:00:34]} 46. Kd3 {[%clk 0:00:22]}  Bf6 {[%clk 0:00:34]} 47. Rb1 {[%clk 0:00:20]}  b2 {[%clk 0:00:34]} 48. Rxb2+ {[%clk 0:00:19]}  Kc6 {[%clk 0:00:34]} 49. Ra2 {[%clk 0:00:17]}  Kxd7 {[%clk 0:00:34]} 50. Ke4 {[%clk 0:00:17]}  Ke7 {[%clk 0:00:32]} 51. Ra7+ {[%clk 0:00:18]}  Kf8 {[%clk 0:00:32]} 52. Kd5 {[%clk 0:00:18]}  Bh4 {[%clk 0:00:33]} 53. f3 {[%clk 0:00:18]}  Bf2 {[%clk 0:00:33]} 54. Rb7 {[%clk 0:00:19]}  Bg3 {[%clk 0:00:32]} 55. Ke6 {[%clk 0:00:20]}  Kg8 {[%clk 0:00:29]} 56. f6 {[%clk 0:00:19]}  gxf6 {[%clk 0:00:27]} 57. Kxf6 {[%clk 0:00:19]}  h5 {[%clk 0:00:28]} 58. Kg5 {[%clk 0:00:19]}  h4 {[%clk 0:00:28]} 59. f4 {[%clk 0:00:19]} 1-0


[Site "https://www.chess.com"]

[Event "Titled Tuesday Blitz March 15 Late 2022"]
[White "Aldokhin, Ivan"]
[Black "Kamsky, Gata"]
[WhiteFideId "24115720"]
[BlackFideId "2000024"]
[WhiteElo "2231"]
[BlackElo "2645"]
[Result "1-0"]
[Round "06"]
[TimeControl "180+1"]
[Date "2022.03.15"]
[WhiteClock "0:01:06"]
[BlackClock "0:01:03"]

1. d4 {[%clk 0:03:00]}  Nf6 {[%clk 0:02:58]} 2. c4 {[%clk 0:03:01]}  g6 {[%clk 0:02:57]} 3. Nc3 {[%clk 0:03:02]}  Bg7 {[%clk 0:02:58]} 4. e4 {[%clk 0:03:02]}  d6 {[%clk 0:02:58]} 5. h3 {[%clk 0:03:00]}  e5 {[%clk 0:02:53]} 6. d5 {[%clk 0:02:56]}  a5 {[%clk 0:02:52]} 7. Be2 {[%clk 0:02:41]}  Na6 {[%clk 0:02:50]} 8. Be3 {[%clk 0:02:27]}  Nc5 {[%clk 0:02:48]} 9. Qc2 {[%clk 0:02:26]}  h5 {[%clk 0:02:33]} 10. Nf3 {[%clk 0:02:19]}  b6 {[%clk 0:02:19]} 11. Nd2 {[%clk 0:02:15]}  Bh6 {[%clk 0:02:17]} 12. Bxh6 {[%clk 0:02:09]}  Rxh6 {[%clk 0:02:16]} 13. O-O-O {[%clk 0:02:09]}  h4 {[%clk 0:02:14]} 14. Kb1 {[%clk 0:02:08]}  Qe7 {[%clk 0:02:10]} 15. Rdf1 {[%clk 0:02:02]}  g5 {[%clk 0:01:49]} 16. a3 {[%clk 0:01:56]}  a4 {[%clk 0:01:49]} 17. Ka2 {[%clk 0:01:56]}  Bd7 {[%clk 0:01:48]} 18. Rb1 {[%clk 0:01:42]}  Kf8 {[%clk 0:01:47]} 19. Nf1 {[%clk 0:01:42]}  Nh5 {[%clk 0:01:23]} 20. Bxh5 {[%clk 0:01:39]}  Rxh5 {[%clk 0:01:23]} 21. Ne3 {[%clk 0:01:31]}  f6 {[%clk 0:01:22]} 22. f3 {[%clk 0:01:20]}  Ke8 {[%clk 0:01:20]} 23. Ncd1 {[%clk 0:01:15]}  Kd8 {[%clk 0:01:19]} 24. Nf2 {[%clk 0:01:15]}  Kc8 {[%clk 0:01:18]} 25. Qc3 {[%clk 0:01:15]}  Kb7 {[%clk 0:01:17]} 26. Nc2 {[%clk 0:01:13]}  Rhh8 {[%clk 0:01:16]} 27. Nd3 {[%clk 0:01:13]}  f5 {[%clk 0:01:15]} 28. Nxc5+ {[%clk 0:01:10]}  dxc5 {[%clk 0:01:11]} 29. exf5 {[%clk 0:01:09]}  Bxf5 {[%clk 0:01:10]} 30. Rbe1 {[%clk 0:01:09]}  Bxc2 {[%clk 0:01:07]} 31. Qxc2 {[%clk 0:01:08]}  Rhf8 {[%clk 0:01:05]} 32. Qe4 {[%clk 0:01:07]}  Rae8 {[%clk 0:01:03]} 33. d6+ {[%clk 0:01:06]} 1-0


[Site "https://www.chess.com"]

[Event "Titled Tuesday Blitz March 15 Late 2022"]
[White "Andreikin, Dmitry"]
[Black "Fedoseev, Vladimir"]
[WhiteFideId "4158814"]
[BlackFideId "24130737"]
[WhiteElo "3033"]
[BlackElo "3020"]
[Result "1-0"]
[Round "06"]
[TimeControl "180+1"]
[Date "2022.03.15"]
[WhiteClock "0:00:38"]
[BlackClock "0:00:08"]

1. d4 {[%clk 0:02:58]}  d5 {[%clk 0:02:59]} 2. c4 {[%clk 0:02:58]}  c6 {[%clk 0:02:59]} 3. Nf3 {[%clk 0:02:57]}  Nf6 {[%clk 0:02:59]} 4. Qc2 {[%clk 0:02:55]}  g6 {[%clk 0:02:56]} 5. cxd5 {[%clk 0:02:53]}  cxd5 {[%clk 0:02:53]} 6. Bf4 {[%clk 0:02:53]}  Nc6 {[%clk 0:02:52]} 7. e3 {[%clk 0:02:52]}  Bg7 {[%clk 0:02:47]} 8. Nc3 {[%clk 0:02:51]}  O-O {[%clk 0:02:46]} 9. h3 {[%clk 0:02:49]}  Bf5 {[%clk 0:02:43]} 10. Qa4 {[%clk 0:02:47]}  Ne4 {[%clk 0:02:36]} 11. Bb5 {[%clk 0:02:44]}  Nxc3 {[%clk 0:02:31]} 12. bxc3 {[%clk 0:02:44]}  Na5 {[%clk 0:02:31]} 13. O-O {[%clk 0:02:40]}  Rc8 {[%clk 0:02:27]} 14. Rfc1 {[%clk 0:02:35]}  a6 {[%clk 0:02:20]} 15. Be2 {[%clk 0:02:35]}  Nc4 {[%clk 0:02:15]} 16. Qb3 {[%clk 0:02:30]}  Qd7 {[%clk 0:02:11]} 17. a4 {[%clk 0:02:28]}  Rc6 {[%clk 0:02:04]} 18. a5 {[%clk 0:02:18]}  Rfc8 {[%clk 0:02:01]} 19. Ra2 {[%clk 0:02:17]}  b5 {[%clk 0:01:25]} 20. axb6 {[%clk 0:02:15]}  Rxb6 {[%clk 0:01:25]} 21. Qa4 {[%clk 0:02:11]}  Qb7 {[%clk 0:01:20]} 22. Bxc4 {[%clk 0:01:58]}  dxc4 {[%clk 0:01:18]} 23. Rca1 {[%clk 0:01:43]}  Be4 {[%clk 0:01:15]} 24. Qa5 {[%clk 0:01:41]}  h6 {[%clk 0:00:34]} 25. Bg3 {[%clk 0:01:36]}  Bxf3 {[%clk 0:00:26]} 26. gxf3 {[%clk 0:01:36]}  Rf6 {[%clk 0:00:27]} 27. f4 {[%clk 0:01:25]}  Rb6 {[%clk 0:00:24]} 28. f5 {[%clk 0:01:18]}  g5 {[%clk 0:00:19]} 29. Kh2 {[%clk 0:01:09]}  Rcc6 {[%clk 0:00:19]} 30. Qd5 {[%clk 0:01:06]}  Qc8 {[%clk 0:00:17]} 31. Ra5 {[%clk 0:01:02]}  Bf8 {[%clk 0:00:15]} 32. Qe4 {[%clk 0:01:01]}  Qd7 {[%clk 0:00:14]} 33. Rd5 {[%clk 0:00:57]}  Qc8 {[%clk 0:00:14]} 34. Raa5 {[%clk 0:00:57]}  Rb3 {[%clk 0:00:13]} 35. Rdc5 {[%clk 0:00:55]}  Rxc5 {[%clk 0:00:13]} 36. Rxc5 {[%clk 0:00:55]}  Qd7 {[%clk 0:00:13]} 37. Rxc4 {[%clk 0:00:54]}  a5 {[%clk 0:00:12]} 38. Qa8 {[%clk 0:00:52]}  Qb7 {[%clk 0:00:12]} 39. Qxb7 {[%clk 0:00:49]}  Rxb7 {[%clk 0:00:13]} 40. Ra4 {[%clk 0:00:46]}  Ra7 {[%clk 0:00:13]} 41. c4 {[%clk 0:00:47]}  e6 {[%clk 0:00:12]} 42. fxe6 {[%clk 0:00:47]}  fxe6 {[%clk 0:00:13]} 43. c5 {[%clk 0:00:47]}  Kf7 {[%clk 0:00:13]} 44. c6 {[%clk 0:00:45]}  Ke8 {[%clk 0:00:13]} 45. e4 {[%clk 0:00:41]}  Bb4 {[%clk 0:00:13]} 46. d5 {[%clk 0:00:42]}  exd5 {[%clk 0:00:11]} 47. exd5 {[%clk 0:00:43]}  Rf7 {[%clk 0:00:09]} 48. Ra2 {[%clk 0:00:40]}  Rf5 {[%clk 0:00:09]} 49. Re2+ {[%clk 0:00:39]}  Kd8 {[%clk 0:00:08]} 50. c7+ {[%clk 0:00:38]}  Kd7 {[%clk 0:00:08]} 51. Re8 {[%clk 0:00:38]} 1-0


[Site "https://www.chess.com"]

[Event "Titled Tuesday Blitz March 15 Late 2022"]
[White "Awoki, Daniel Teidi"]
[Black "Vargas Pereda, Jesus Manue"]
[WhiteFideId "2100827"]
[BlackFideId "5115710"]
[WhiteElo "2023"]
[BlackElo "1864"]
[Result "1-0"]
[Round "06"]
[TimeControl "180+1"]
[Date "2022.03.16"]
[WhiteClock "0:02:02"]
[BlackClock "0:01:53"]

1. c4 {[%clk 0:02:59]}  f5 {[%clk 0:02:59]} 2. g3 {[%clk 0:02:59]}  e6 {[%clk 0:02:58]} 3. Nc3 {[%clk 0:02:59]}  Nf6 {[%clk 0:02:54]} 4. Bg2 {[%clk 0:02:59]}  Bb4 {[%clk 0:02:54]} 5. Nf3 {[%clk 0:02:59]}  O-O {[%clk 0:02:44]} 6. O-O {[%clk 0:02:57]}  Bxc3 {[%clk 0:02:42]} 7. dxc3 {[%clk 0:02:57]}  Nc6 {[%clk 0:02:41]} 8. Nd4 {[%clk 0:02:36]}  Ne5 {[%clk 0:02:33]} 9. b3 {[%clk 0:02:34]}  Rb8 {[%clk 0:02:30]} 10. Qc2 {[%clk 0:02:19]}  b6 {[%clk 0:02:26]} 11. Rd1 {[%clk 0:02:15]}  Qe8 {[%clk 0:02:24]} 12. Bf4 {[%clk 0:02:11]}  d6 {[%clk 0:02:21]} 13. Nb5 {[%clk 0:02:06]}  c6 {[%clk 0:01:53]} 14. Nxd6 {[%clk 0:02:02]} 1-0


[Site "https://www.chess.com"]

[Event "Titled Tuesday Blitz March 15 Late 2022"]
[White "Aydin, Gulenay"]
[Black "Mikhailov, Viacheslav"]
[WhiteFideId "34557431"]
[BlackFideId "4187369"]
[WhiteElo "1429"]
[BlackElo "2381"]
[Result "1-0"]
[Round "06"]
[TimeControl "180+1"]
[Date "2022.03.16"]
[WhiteClock "0:00:59"]
[BlackClock "0:00:17"]

1. e4 {[%clk 0:03:00]}  c5 {[%clk 0:03:00]} 2. Nf3 {[%clk 0:03:00]}  d6 {[%clk 0:03:00]} 3. d4 {[%clk 0:03:00]}  cxd4 {[%clk 0:03:01]} 4. Nxd4 {[%clk 0:03:01]}  Nf6 {[%clk 0:03:01]} 5. Nc3 {[%clk 0:03:00]}  a6 {[%clk 0:03:02]} 6. f3 {[%clk 0:02:59]}  g6 {[%clk 0:02:59]} 7. Be3 {[%clk 0:02:58]}  Bg7 {[%clk 0:02:59]} 8. Qd2 {[%clk 0:02:54]}  O-O {[%clk 0:02:59]} 9. O-O-O {[%clk 0:02:48]}  Nc6 {[%clk 0:02:59]} 10. Bc4 {[%clk 0:02:43]}  Ne5 {[%clk 0:02:44]} 11. Bb3 {[%clk 0:02:42]}  b5 {[%clk 0:02:44]} 12. h4 {[%clk 0:02:38]}  Nc4 {[%clk 0:02:41]} 13. Bxc4 {[%clk 0:02:36]}  bxc4 {[%clk 0:02:42]} 14. Bh6 {[%clk 0:02:31]}  Qb6 {[%clk 0:02:38]} 15. h5 {[%clk 0:02:27]}  Rb8 {[%clk 0:02:36]} 16. b3 {[%clk 0:02:26]}  cxb3 {[%clk 0:02:36]} 17. axb3 {[%clk 0:02:24]}  Qa5 {[%clk 0:02:13]} 18. Kb2 {[%clk 0:02:16]}  Bd7 {[%clk 0:01:56]} 19. g4 {[%clk 0:01:14]}  Bxh6 {[%clk 0:01:40]} 20. Qxh6 {[%clk 0:01:15]}  Rfc8 {[%clk 0:00:57]} 21. Rd3 {[%clk 0:01:11]}  Qe5 {[%clk 0:00:39]} 22. hxg6 {[%clk 0:01:06]}  fxg6 {[%clk 0:00:39]} 23. Nd5 {[%clk 0:01:04]}  Rb7 {[%clk 0:00:20]} 24. Nxf6+ {[%clk 0:00:59]}  exf6 {[%clk 0:00:20]} 25. Qxh7+ {[%clk 0:00:59]}  Kf8 {[%clk 0:00:20]} 26. Qh8+ {[%clk 0:00:58]}  Ke7 {[%clk 0:00:17]} 27. Rh7# {[%clk 0:00:59]} 1-0


[Site "https://www.chess.com"]